bitfinex-derivatives/quotes_BTCF0:USTF0_20251230
["timestamp","ask_amount","ask_price","bid_price","bid_amount"]
[1767083663701,0.0113971,87854.0,87829.0,0.15412]
[1767083664006,0.00017073,87850.0,87833.0,0.00017073]
[1767083664202,0.01156833,87850.0,87833.0,0.00017073]
[1767083664504,0.00017073,87850.0,87833.0,0.00017073]
[1767083666199,0.0113978,87849.0,87833.0,0.00017073]
[1767083666602,0.0113987,87842.0,87821.0,0.01138]
[1767083667506,0.0113987,87842.0,87823.0,0.00017073]
[1767083668609,0.09688,87848.0,87828.0,0.0114004]
[1767083670210,0.00017073,87850.0,87829.0,0.05728]
[1767083670396,0.00017073,87850.0,87834.0,0.0113995]
[1767083670603,0.1084366,87858.0,87830.0,0.0114001]
[1767083671411,0.1084366,87858.0,87834.0,0.0113996]
[1767083671710,0.00017073,87855.0,87834.0,0.0113996]
[1767083680909,0.01156773,87855.0,87834.0,0.0113996]
[1767083681313,0.00017073,87855.0,87834.0,0.0113996]
[1767083682219,0.00017073,87855.0,87838.0,0.0113991]
[1767083684912,0.00017073,87855.0,87834.0,0.0113996]
[1767083685516,0.00017073,87855.0,87833.0,0.0113997]
[1767083685810,0.00017073,87855.0,87836.0,0.0113993]
[1767083688211,0.00017073,87855.0,87836.0,0.09688]
[1767083688404,7.3e-07,87855.0,87836.0,0.09688]
[1767083689310,7.3e-07,87855.0,87838.0,0.0113991]
[1767083689512,7.3e-07,87855.0,87841.0,0.0113986]
[1767083689812,7.3e-07,87855.0,87844.0,0.0113982]
[1767083690218,0.09688,87868.0,87844.0,0.0113982]
[1767083690418,0.02683709,87867.0,87844.0,0.0113982]
[1767083690617,0.02683709,87866.0,87844.0,0.0113982]
[1767083690818,0.0113955,87867.0,87844.0,0.0113982]
[1767083691019,0.02683532,87866.0,87844.0,0.0113982]
[1767083691216,0.00017073,87864.0,87844.0,0.0113982]
[1767083691415,0.00017073,87864.0,87845.0,0.01138]
[1767083692011,0.0113959,87863.0,87845.0,0.01138]
[1767083692419,0.00017073,87864.0,87845.0,0.01138]
[1767083692820,0.00017073,87864.0,87846.0,0.0113981]
[1767083694823,0.01156663,87864.0,87845.0,0.01138]
[1767083695020,0.00017073,87864.0,87845.0,0.01138]
[1767083695622,0.00017073,87864.0,87846.0,0.0113981]
[1767083695923,0.00017073,87864.0,87849.0,0.0113976]
[1767083696426,0.09688,87868.0,87848.0,0.0113977]
[1767083696624,0.0113948,87872.0,87848.0,0.0113977]
[1767083697325,0.00017073,87869.0,87848.0,0.0113977]
[1767083697726,0.09684,87875.0,87854.0,0.011397]
[1767083697920,0.09684,87875.0,87855.0,0.09684]
[1767083698320,0.0113946,87874.0,87855.0,0.09684]
[1767083698721,0.00011316,87873.0,87855.0,0.09684]
[1767083700914,0.0113948,87872.0,87848.0,0.0113978]
[1767083701119,0.0113948,87872.0,87849.0,0.15412]
[1767083701521,0.00011316,87873.0,87850.0,0.15414865]
[1767083701722,0.09684,87897.0,87872.0,0.0113947]
[1767083701920,0.02682332,87896.0,87872.0,0.0113947]
[1767083702120,0.09684,87904.0,87870.0,0.15414865]
[1767083702315,0.09684,87904.0,87880.0,0.15414865]
[1767083702316,0.08399604,87903.0,87880.0,0.15414865]
[1767083702521,0.02671604,87902.0,87881.0,0.09684]
[1767083702722,0.05728,87909.0,87890.0,0.15402928]
[1767083702923,0.0113902,87907.0,87883.0,0.00017073]
[1767083703124,0.0113902,87907.0,87890.0,0.15402928]
[1767083703925,0.05728,87909.0,87897.0,0.15402928]
[1767083704427,0.01366532,87908.0,87889.0,0.05728]
[1767083704624,0.01366532,87908.0,87889.0,0.15412]
[1767083705619,0.0113906,87904.0,87889.0,0.15412]
[1767083705827,0.00227512,87908.0,87883.0,0.00017073]
[1767083706730,0.0113918,87895.0,87883.0,0.00017073]
[1767083710133,0.0113922,87892.0,87883.0,0.00017073]
[1767083711628,0.0113916,87896.0,87883.0,0.00017073]
[1767083712129,0.0113917,87896.0,87883.0,0.00017073]
[1767083713334,0.0113927,87888.0,87850.0,0.15401777]
[1767083713632,0.0113935,87882.0,87859.0,0.11377923]
[1767083713835,0.0113935,87882.0,87860.0,0.09684]
[1767083714028,0.011393,87886.0,87860.0,0.09684]
[1767083714228,0.011393,87886.0,87861.0,0.12519669]
[1767083714433,0.00017073,87882.0,87865.0,0.00017073]
[1767083715333,0.00017073,87882.0,87866.0,0.15412]
[1767083717135,0.0113936,87881.0,87865.0,0.00017073]
[1767083717433,0.0113936,87881.0,87858.0,0.05728]
[1767083717434,0.09684,87881.0,87858.0,0.05728]
[1767083717839,0.0113946,87873.0,87857.0,0.00011692]
[1767083718047,0.0113946,87873.0,87857.0,0.05739692]
[1767083718941,0.0113946,87873.0,87857.0,0.00011692]
[1767083720542,0.0113946,87873.0,87858.0,0.01138]
[1767083721538,0.011395,87870.0,87858.0,0.01138]
[1767083721738,0.05728,87879.0,87858.0,0.01138]
[1767083723244,0.011395,87870.0,87858.0,0.01138]
[1767083724640,0.16558503,87870.0,87858.0,0.01138]
[1767083724841,0.26242503,87870.0,87858.0,0.01138]
[1767083725345,0.0113965,87859.0,87829.0,0.02120719]
[1767083725551,0.0113972,87853.0,87830.0,0.25103003]
[1767083725743,0.0113967,87857.0,87831.0,0.05728]
[1767083726242,0.00017073,87853.0,87835.0,0.00017073]
[1767083727244,0.0113973,87852.0,87835.0,0.00017073]
[1767083729038,0.00017073,87853.0,87835.0,0.00017073]
[1767083729946,0.15412,87852.0,87835.0,0.00017073]
[1767083735354,0.02607713,87851.0,87840.0,0.0113988]
[1767083735947,0.00010656,87856.0,87840.0,0.0113988]
[1767083736454,0.00010656,87856.0,87835.0,0.00017073]
[1767083738250,0.05728,87859.0,87836.0,0.12523552]
[1767083739156,0.05728,87859.0,87839.0,0.0113989]
[1767083739351,0.00017073,87858.0,87841.0,0.0113987]
[1767083739547,0.0113957,87865.0,87841.0,0.1082387]
[1767083739858,0.0238351,87869.0,87843.0,0.0113984]
[1767083740461,0.0238351,87869.0,87844.0,0.1138265]
[1767083741652,0.0113956,87866.0,87844.0,0.1138265]
[1767083741858,0.011396,87863.0,87844.0,0.1138265]
[1767083742157,0.011396,87863.0,87841.0,0.09684]
[1767083742358,0.011396,87863.0,87842.0,0.11382391]
[1767083742562,0.011396,87863.0,87843.0,0.15412]
[1767083742762,0.011396,87863.0,87836.0,0.0113993]
[1767083742960,0.0113964,87859.0,87837.0,0.15412]
[1767083743456,0.011397,87855.0,87837.0,0.05728]
[1767083744155,0.0686764,87859.0,87837.0,0.05728]
[1767083746259,0.0113969,87856.0,87837.0,0.05728]
[1767083746460,0.0113972,87853.0,87837.0,0.05728]
[1767083746661,0.0113967,87857.0,87837.0,0.05728]
[1767083747572,0.0113977,87850.0,87837.0,0.05728]
[1767083748262,0.16564387,87850.0,87837.0,0.05728]
[1767083748966,0.0113971,87854.0,87837.0,0.05728]
[1767083749257,0.05728,87859.0,87837.0,0.05728]
[1767083749853,0.15424617,87850.0,87835.0,0.00017073]
[1767083750564,0.05728,87851.0,87835.0,0.00017073]
[1767083753563,0.15412,87851.0,87835.0,7.3e-07]
[1767083760773,0.15412,87851.0,87840.0,0.15424617]
[1767083760968,0.00017,87852.0,87840.0,0.15424617]
[1767083761682,0.00017,87852.0,87844.0,0.0113983]
[1767083761865,0.0113948,87872.0,87851.0,0.0113974]
[1767083762062,0.05728,87871.0,87860.0,0.15424617]
[1767083762473,0.05728,87871.0,87856.0,0.0113968]
[1767083763278,0.09688,87873.0,87856.0,0.0113968]
[1767083765270,0.0022759,87878.0,87855.0,0.09705073]
[1767083765469,0.0022759,87878.0,87862.0,0.0113959]
[1767083765771,0.0022759,87878.0,87865.0,0.0113955]
[1767083765970,0.05728,87883.0,87865.0,0.0113955]
[1767083767175,0.05728,87883.0,87865.0,0.1082355]
[1767083767380,0.05728,87883.0,87868.0,0.0113951]
[1767083767578,0.05728,87883.0,87865.0,0.09684]
[1767083768183,0.15412,87887.0,87865.0,0.09684]
[1767083768486,0.011393,87885.0,87865.0,0.09684]
[1767083769680,0.011393,87885.0,87862.0,0.0113959]
[1767083769878,0.011393,87885.0,87866.0,0.05728]
[1767083771970,0.15412,87887.0,87866.0,0.05728]
[1767083772174,0.0113929,87886.0,87866.0,0.05728]
[1767083773278,0.15412,87887.0,87866.0,0.05728]
[1767083773586,0.0113929,87886.0,87866.0,0.05728]
[1767083775074,0.15412,87887.0,87855.0,0.00017073]
[1767083775285,0.0113937,87881.0,87856.0,0.15412]
[1767083775484,0.0113937,87881.0,87856.0,0.26791671]
[1767083776083,0.0113937,87881.0,87857.0,0.0113966]
[1767083776786,0.0113937,87881.0,87858.0,0.11380642]
[1767083777485,0.011394,87878.0,87858.0,0.11380642]
[1767083777781,0.068674,87878.0,87858.0,0.05728]
[1767083779587,0.068674,87878.0,87855.0,0.09701073]
[1767083779588,0.068674,87878.0,87859.0,0.05728]
[1767083779882,0.09684,87877.0,87859.0,0.05728]
[1767083780087,0.09684,87877.0,87855.0,0.00017073]
[1767083781088,0.0113956,87866.0,87855.0,0.00017073]
[1767083781590,0.0113956,87866.0,87848.0,0.00227667]
[1767083782478,0.01156633,87866.0,87848.0,0.0024474]
[1767083784686,0.0113959,87863.0,87848.0,0.0024474]
[1767083787690,0.0113964,87860.0,87834.0,0.0113996]
[1767083787996,0.00017073,87866.0,87835.0,0.15412]
[1767083788287,0.00017073,87866.0,87818.0,0.11429147]
[1767083788288,0.0113966,87858.0,87831.0,0.05728]
[1767083788487,0.09684,87857.0,87832.0,0.0113998]
[1767083788792,0.09684,87857.0,87836.0,0.00017073]
[1767083789695,0.09684,87857.0,87839.0,0.0113989]
[1767083789886,0.09684,87857.0,87840.0,0.05728]
[1767083790385,0.09684,87857.0,87841.0,0.0113986]
[1767083792584,0.09684,87857.0,87840.0,0.05728]
[1767083793289,0.09684,87857.0,87841.0,0.0113987]
[1767083796782,0.0113937,87880.0,87842.0,0.11383168]
[1767083796995,0.00848,87883.0,87861.0,0.011396]
[1767083797195,0.0113934,87882.0,87861.0,0.05728]
[1767083797891,0.00017073,87880.0,87863.0,0.00017073]
[1767083798999,0.00017073,87880.0,87864.0,0.0113957]
[1767083799190,0.00848,87883.0,87867.0,0.0113952]
[1767083799385,0.09684,87885.0,87867.0,0.0113952]
[1767083799795,0.0022759,87878.0,87867.0,0.0113952]
[1767083802492,0.09684,87885.0,87863.0,0.00017073]
[1767083804292,0.09684,87885.0,87868.0,0.0113951]
[1767083805602,0.0113933,87884.0,87866.0,0.05724]
[1767083805804,0.0113933,87884.0,87865.0,0.15408]
[1767083809397,0.09684,87885.0,87865.0,0.15408]
[1767083809795,0.0113937,87880.0,87863.0,0.00017073]
[1767083811900,0.09684,87885.0,87863.0,0.00017073]
[1767083811901,0.0113932,87884.0,87863.0,0.00017073]
[1767083814208,0.0113936,87881.0,87863.0,0.00017073]
[1767083814408,0.05724,87880.0,87863.0,0.00017073]
[1767083818404,0.0113938,87879.0,87863.0,0.00017073]
[1767083818714,0.05724,87880.0,87863.0,0.00017073]
[1767083818915,0.05724,87880.0,87863.0,0.01156653]
[1767083822718,0.05724,87880.0,87870.0,0.15413176]
[1767083822921,0.05724,87883.0,87870.0,0.15413176]
[1767083823129,0.05724,87883.0,87873.0,0.15413176]
[1767083823311,0.09684,87897.0,87877.0,0.011394]
[1767083823514,0.08382787,87896.0,87887.0,0.15413176]
[1767083823715,0.05724,87896.0,87880.0,0.15413176]
[1767083827224,0.05724,87896.0,87886.0,0.15413176]
[1767083827826,0.05724,87896.0,87880.0,0.15413176]
[1767083829418,0.05724,87896.0,87878.0,0.00017073]
[1767083829618,0.05724,87896.0,87880.0,0.15413176]
[1767083834728,0.05724,87903.0,87886.0,0.15413176]
[1767083835027,0.05724,87903.0,87890.0,0.15413176]
[1767083835730,0.05724,87903.0,87887.0,0.05724]
[1767083835731,0.09684,87907.0,87893.0,0.15413176]
[1767083835932,0.15408,87907.0,87897.0,0.15413176]
[1767083836322,0.0448988,87907.0,87897.0,0.15413176]
[1767083836630,0.00227512,87908.0,87893.0,0.05724]
[1767083838725,0.00227512,87908.0,87898.0,0.15413176]
[1767083839126,0.00227512,87908.0,87893.0,0.05724]
[1767083845330,0.00227512,87908.0,87894.0,0.0113918]
[1767083846240,0.00227512,87908.0,87898.0,0.15413176]
[1767083847426,0.00227512,87908.0,87893.0,0.05724]
[1767083848036,0.01366522,87908.0,87893.0,0.05724]
[1767083849037,0.0113906,87905.0,87893.0,0.05724]
[1767083850641,0.0113908,87902.0,87893.0,0.05724]
[1767083851532,0.0113908,87902.0,87889.0,0.05724]
[1767083852037,0.16552296,87900.0,87886.0,0.05724]
[1767083853135,0.0113912,87900.0,87886.0,0.05724]
[1767083853340,0.16552296,87900.0,87886.0,0.05724]
[1767083853637,0.0113914,87898.0,87870.0,0.15413176]
[1767083853831,0.0113914,87898.0,87878.0,0.05741073]
[1767083854242,0.02671464,87897.0,87878.0,0.05741073]
[1767083854546,0.0113914,87898.0,87878.0,0.05741073]
[1767083854840,0.02671465,87897.0,87878.0,0.05741073]
[1767083855139,0.0113918,87895.0,87878.0,0.05741073]
[1767083855630,0.05724,87894.0,87878.0,0.05741073]
[1767083856033,0.14534918,87919.0,87884.0,0.15413176]
[1767083856034,0.0113902,87907.0,87884.0,0.15413176]
[1767083856236,0.1804629,87906.0,87890.0,0.15413176]
[1767083856434,0.0264229,87905.0,87890.0,0.15413176]
[1767083856742,0.15404,87904.0,87890.0,0.15413176]
[1767083857045,0.0264229,87903.0,87890.0,0.15413176]
[1767083857227,0.15404,87904.0,87890.0,0.15413176]
[1767083857842,0.15413176,87900.0,87880.0,0.21137176]
[1767083859140,0.0113913,87899.0,87880.0,0.21137176]
[1767083859833,0.0113907,87903.0,87880.0,0.21137176]
[1767083860139,0.15413176,87900.0,87880.0,0.21137176]
[1767083860737,0.0113884,87921.0,87880.0,0.21137176]
[1767083860738,0.07947155,87942.0,87880.0,0.21137176]
[1767083860945,0.49399066,88060.0,87948.0,0.0113848]
[1767083860946,0.0113803,87984.0,87948.0,0.0113848]
[1767083861240,0.05632,87989.0,87958.0,0.15413176]
[1767083861438,0.05632,87989.0,87959.0,0.05724]
[1767083861639,0.05632,87989.0,87970.0,0.15413176]
[1767083861841,0.05632,87989.0,87971.0,0.00017052]
[1767083864639,0.0113797,87988.0,87959.0,0.05724]
[1767083864844,0.0113797,87988.0,87958.0,0.15838252]
[1767083864845,0.0113803,87984.0,87960.0,0.15404]
[1767083865041,0.0676996,87989.0,87960.0,0.15404]
[1767083865648,0.00016983,87983.0,87966.0,0.00017052]
[1767083868848,0.00016983,87983.0,87949.0,0.09085037]
[1767083868849,0.0113806,87981.0,87949.0,0.09085037]
[1767083869039,0.05724,87980.0,87951.0,0.09676]
[1767083869853,0.05724,87980.0,87957.0,0.00017052]
[1767083873443,0.0113809,87979.0,87957.0,0.00017052]
[1767083873643,0.05724,87980.0,87957.0,0.00017052]
[1767083875253,0.0686208,87980.0,87957.0,0.00017052]
[1767083879053,0.0113812,87977.0,87957.0,0.00017052]
[1767083879751,0.0113812,87977.0,87958.0,0.01135]
[1767083879952,0.05724,87980.0,87958.0,0.01135]
[1767083880253,0.0113809,87979.0,87958.0,0.01135]
[1767083881447,0.0113813,87976.0,87957.0,0.00017052]
[1767083881652,0.0113813,87976.0,87952.0,0.0572]
[1767083882546,0.0113813,87976.0,87955.0,0.00017052]
[1767083883347,0.05724,87980.0,87955.0,0.01155442]
[1767083884759,0.0113809,87979.0,87955.0,0.00017052]
[1767083884950,0.05724,87980.0,87955.0,0.00017052]
[1767083886357,0.0686208,87980.0,87955.0,0.00017052]
[1767083887263,0.05724,87980.0,87956.0,0.0113838]
[1767083888351,0.05724,87980.0,87956.0,0.04151785]
[1767083889257,0.05724,87980.0,87960.0,0.03013405]
[1767083890161,0.05724,87980.0,87969.0,0.03013405]
[1767083891253,0.05724,87980.0,87971.0,0.03013405]
[1767083894465,0.05724,87980.0,87966.0,0.04051633]
[1767083897866,0.05724,87980.0,87962.0,0.06077449]
[1767083898059,0.05724,87980.0,87955.0,0.00017052]
[1767083898060,0.05724,87980.0,87960.0,0.06077449]
[1767083898257,0.05724,87980.0,87959.0,0.06077449]
[1767083898562,0.05724,87980.0,87955.0,0.00017052]
[1767083898563,0.05724,87980.0,87962.0,0.06077449]
[1767083898959,0.0113813,87976.0,87962.0,0.06077449]
[1767083901769,0.05724,87980.0,87955.0,0.00017052]
[1767083901955,0.05724,87980.0,87949.0,0.09130665]
[1767083902157,0.05724,87980.0,87946.0,0.05716]
[1767083902466,0.0113826,87966.0,87940.0,0.09672]
[1767083902655,0.0113828,87964.0,87939.0,0.05716]
[1767083902856,0.00017052,87960.0,87943.0,0.00017052]
[1767083903361,0.00017052,87960.0,87932.0,0.09736]
[1767083903362,0.0113839,87956.0,87932.0,0.09736]
[1767083903563,0.05716,87955.0,87933.0,0.05716]
[1767083904365,0.05716,87955.0,87935.0,0.00017052]
[1767083913075,0.05716,87955.0,87929.0,8.015e-05]
[1767083913274,0.0113843,87953.0,87929.0,8.015e-05]
[1767083913470,0.0113847,87950.0,87929.0,8.015e-05]
[1767083914070,0.0113847,87950.0,87931.0,0.00011439]
[1767083915378,0.09676,87952.0,87929.0,8.015e-05]
[1767083915379,0.0113851,87947.0,87929.0,8.015e-05]
[1767083915579,0.0572,87946.0,87929.0,8.015e-05]
[1767083916173,0.0113853,87945.0,87929.0,8.015e-05]
[1767083916675,0.0113853,87945.0,87924.0,0.0572]
[1767083917672,9.051e-05,87944.0,87924.0,0.0572]
[1767083918482,9.051e-05,87944.0,87923.0,0.09283752]
[1767083918687,0.00017052,87942.0,87922.0,0.0572]
[1767083919180,0.00017052,87942.0,87892.0,0.2012]
[1767083919181,0.15379376,87940.0,87901.0,0.0572]
[1767083919382,0.09676,87941.0,87903.0,0.0113906]
[1767083920079,0.0113872,87930.0,87903.0,0.0113906]
[1767083920281,0.011388,87924.0,87901.0,0.0572]
[1767083920583,0.00017062,87921.0,87901.0,0.14877622]
[1767083920783,0.00017062,87921.0,87901.0,0.0572]
[1767083921183,0.00017062,87921.0,87902.0,0.0572]
[1767083925087,9.051e-05,87923.0,87902.0,0.0685907]
[1767083926087,0.00017062,87921.0,87904.0,0.00017062]
[1767083927279,0.00017062,87921.0,87905.0,0.0113904]
[1767083927484,0.09676,87927.0,87908.0,0.01139]
[1767083927679,0.0572,87934.0,87911.0,0.0113895]
[1767083927894,0.0572,87934.0,87912.0,0.0572]
[1767083928204,0.09676,87935.0,87912.0,0.0572]
[1767083928392,0.0113842,87954.0,87923.0,0.011388]
[1767083928692,0.0572,87954.0,87925.0,0.0113878]
[1767083929192,0.0113843,87953.0,87925.0,0.0113878]
[1767083929697,0.00017062,87948.0,87930.0,0.00017062]
[1767083936502,0.00017062,87948.0,87931.0,0.011387]
[1767083937204,0.00017062,87948.0,87930.0,0.00017062]
[1767083941299,0.011385,87947.0,87930.0,0.00017062]
[1767083941502,0.09676,87946.0,87930.0,0.00017062]
[1767083942006,0.09676,87952.0,87934.0,0.0113866]
[1767083942299,0.09676,87962.0,87940.0,0.15379376]
[1767083942497,0.0572,87962.0,87952.0,0.1538173]
[1767083945507,0.09676,87972.0,87950.0,0.0113846]
[1767083945706,0.0572,87970.0,87960.0,0.1538173]
[1767083946106,0.0572,87970.0,87948.0,0.05737062]
[1767083946302,0.0572,87970.0,87960.0,0.1538173]
[1767083946709,0.0572,87970.0,87950.0,0.1538173]
[1767083946910,0.0113825,87967.0,87950.0,0.1538173]
[1767083947102,0.0113827,87965.0,87948.0,0.00017062]
[1767083948812,0.0113822,87969.0,87948.0,0.00017062]
[1767083949210,0.2110173,87970.0,87948.0,0.00017062]
[1767083950217,0.0113827,87965.0,87948.0,0.00017062]
[1767083951716,0.2110173,87970.0,87948.0,0.00017062]
[1767083951717,0.0113822,87969.0,87948.0,0.00017062]
[1767083951916,0.0113822,87969.0,87950.0,0.1538173]
[1767083952418,0.0113826,87966.0,87950.0,0.1538173]
[1767083952615,0.2110173,87970.0,87950.0,0.1538173]
[1767083952810,0.0113824,87967.0,87948.0,0.00017062]
[1767083953210,0.0113829,87964.0,87948.0,0.00017062]
[1767083953618,0.0113823,87968.0,87948.0,0.00017062]
[1767083956014,0.0113823,87968.0,87950.0,0.1538173]
[1767083956319,0.0572,87970.0,87950.0,0.1538173]
[1767083956524,0.2110173,87970.0,87950.0,0.1538173]
[1767083956723,0.0572,87970.0,87950.0,0.1538173]
[1767083957611,0.2110173,87970.0,87950.0,0.1538173]
[1767083958428,0.0572,87970.0,87950.0,0.1538173]
[1767083959330,0.0572,87970.0,87951.0,0.0113844]
[1767083959730,0.0572,87970.0,87950.0,0.1538173]
[1767083961727,0.0572,87970.0,87951.0,0.05716]
[1767083962029,0.0572,87970.0,87951.0,0.08751312]
[1767083962432,0.0572,87970.0,87952.0,0.03035312]
[1767083963735,0.0572,87970.0,87960.0,0.1538173]
[1767083964329,0.0572,87970.0,87952.0,0.04173742]
[1767083964943,0.0572,87970.0,87953.0,0.03035312]
[1767083966040,0.0572,87970.0,87960.0,0.1538173]
[1767083966234,0.0572,87970.0,87953.0,0.03035312]
[1767083967537,0.0572,87970.0,87954.0,0.03035312]
[1767083968634,0.0572,87970.0,87960.0,0.1538173]
[1767083970335,0.0572,87970.0,87955.0,0.03035312]
[1767083971243,0.0572,87970.0,87960.0,0.1538173]
[1767083971942,0.0572,87970.0,87957.0,0.03035312]
[1767083972138,0.0572,87970.0,87960.0,0.1538173]
[1767083975338,0.0572,87970.0,87957.0,0.03035312]
[1767083976246,0.0572,87970.0,87953.0,0.04041551]
[1767083977450,0.0572,87970.0,87954.0,0.05716]
[1767083978251,0.2110173,87970.0,87954.0,0.05716]
[1767083978546,0.0572,87970.0,87954.0,0.05716]
[1767083978749,0.2110173,87970.0,87954.0,0.05716]
[1767083980451,0.2110173,87970.0,87952.0,0.04041551]
[1767083982849,0.0572,87970.0,87952.0,0.04041551]
[1767083983049,0.2110173,87970.0,87952.0,0.04041551]
[1767083983451,0.2110173,87970.0,87951.0,0.04041551]
[1767083983647,0.0113825,87967.0,87951.0,0.04041551]
[1767083983854,0.0113825,87967.0,87948.0,0.00017062]
[1767083984245,0.0113823,87968.0,87948.0,0.00017062]
[1767083986158,0.2110173,87970.0,87950.0,0.1538173]
[1767083987955,0.2223994,87970.0,87948.0,0.00017062]
[1767083988159,0.0685821,87970.0,87948.0,0.00017062]
[1767083988460,0.2223994,87970.0,87948.0,0.00017062]
[1767083988659,0.0685821,87970.0,87948.0,0.00017062]
[1767083988959,0.2223994,87970.0,87948.0,0.00017062]
[1767083989760,0.1538173,87960.0,87937.0,0.08138203]
[1767083990055,0.15388,87959.0,87937.0,0.05716]
[1767083990560,0.15388,87959.0,87938.0,0.0113861]
[1767083990859,0.15388,87959.0,87940.0,0.15398782]
[1767083991246,0.15388,87959.0,87940.0,0.00017052]
[1767083991452,0.15388,87959.0,87940.0,0.15398782]
[1767083994658,0.15388,87959.0,87940.0,0.00017052]
[1767083994864,0.15388,87959.0,87940.0,0.15398782]
[1767083996060,0.00017052,87974.0,87949.0,0.165202]
[1767083996061,0.05716,87965.0,87949.0,0.165202]
[1767083996269,0.00017052,87974.0,87955.0,0.3076346]
[1767083996558,0.00692,87989.0,87956.0,0.1653037]
[1767083996753,0.1538173,87980.0,87956.0,0.0113837]
[1767083997062,0.1538173,87980.0,87957.0,0.15392]
[1767083997262,0.1538173,87980.0,87960.0,0.1538173]
[1767083997462,0.00017052,87979.0,87961.0,0.00017052]
[1767083999559,0.00017052,87979.0,87946.0,0.0113851]
[1767083999759,0.1538173,87970.0,87947.0,0.15388]
[1767084000060,0.05716,87975.0,87950.0,0.1538173]
[1767084000451,0.05716,87975.0,87954.0,0.00017052]
[1767084001652,0.1538173,87970.0,87954.0,0.00017052]
[1767084002161,0.1538173,87964.0,87945.0,0.05716]
[1767084002369,0.1538173,87960.0,87945.0,0.05716]
[1767084002666,0.05716,87964.0,87945.0,0.05716]
[1767084002967,0.00017052,87963.0,87946.0,0.00017052]
[1767084003961,0.08699614,87967.0,87947.0,0.0113849]
[1767084005070,0.00017052,87966.0,87947.0,0.0113849]
[1767084005565,0.00017052,87966.0,87951.0,0.0113844]
[1767084005771,0.05716,87974.0,87952.0,0.09672]
[1767084005966,0.05716,87974.0,87953.0,0.05716]
[1767084006472,0.05716,87974.0,87954.0,0.011384]
[1767084006770,0.00017052,87973.0,87954.0,0.011384]
[1767084007173,0.00017052,87973.0,87953.0,0.05716]
[1767084007772,0.00017052,87973.0,87954.0,0.05716]
[1767084013172,0.00017052,87973.0,87948.0,0.05716]
[1767084013375,0.00017052,87973.0,87946.0,0.00017052]
[1767084013766,0.0113818,87972.0,87947.0,0.15388]
[1767084014069,0.01155222,87973.0,87949.0,0.0405411]
[1767084014483,0.01155222,87973.0,87948.0,0.0405411]
[1767084014484,0.0113821,87969.0,87948.0,0.0405411]
[1767084015776,0.0113821,87969.0,87949.0,0.0405411]
[1767084016166,0.15386797,87970.0,87946.0,0.00017052]
[1767084016372,0.15386797,87970.0,87937.0,0.09672]
[1767084016373,0.0113833,87961.0,87941.0,0.0405411]
[1767084016574,0.15388,87960.0,87941.0,0.0405411]
[1767084017371,0.15388,87960.0,87942.0,0.00017052]
[1767084017772,0.15388,87960.0,87939.0,0.0405411]
[1767084017773,0.0113839,87956.0,87939.0,0.0405411]
[1767084018076,0.0113839,87956.0,87936.0,0.0405411]
[1767084018271,0.0113843,87953.0,87932.0,0.04055292]
[1767084018462,0.05716,87952.0,87923.0,0.05716]
[1767084018869,0.05716,87952.0,87929.0,0.01155782]
[1767084019168,0.05716,87952.0,87932.0,0.0113868]
[1767084019374,0.05716,87952.0,87932.0,0.0685468]
[1767084019972,0.00017052,87951.0,87932.0,0.0685468]
[1767084022477,0.00017052,87951.0,87932.0,0.05716]
[1767084022776,0.00017052,87951.0,87933.0,0.00432]
[1767084029276,0.09676,87950.0,87933.0,0.00432]
[1767084037883,0.1081447,87950.0,87933.0,0.00432]
[1767084038085,0.0113851,87947.0,87933.0,0.00432]
[1767084038686,0.0113854,87944.0,87921.0,0.06080915]
[1767084038890,0.05716,87943.0,87920.0,0.06080915]
[1767084039281,0.05716,87943.0,87919.0,0.06080915]
[1767084039481,0.05716,87943.0,87917.0,0.06080915]
[1767084039482,0.0113857,87942.0,87917.0,0.06080915]
[1767084039684,0.05716,87943.0,87914.0,0.09676]
[1767084039979,0.05716,87943.0,87921.0,0.00017052]
[1767084040994,0.0113857,87942.0,87921.0,0.00017052]
[1767084041889,0.05716,87943.0,87921.0,0.00017052]
[1767084043295,0.0113863,87938.0,87921.0,0.00017052]
[1767084043488,0.09676,87937.0,87921.0,0.00017052]
[1767084045486,0.05716,87936.0,87921.0,0.00017052]
[1767084050995,0.0113866,87935.0,87921.0,0.00017052]
[1767084051202,0.0113866,87935.0,87911.0,0.09676]
[1767084052094,0.00017052,87932.0,87914.0,0.00017052]
[1767084053804,0.05716,87940.0,87917.0,0.0113888]
[1767084054103,0.05716,87939.0,87913.0,0.06080915]
[1767084054503,0.05716,87939.0,87914.0,0.06080915]
[1767084054799,0.00017052,87935.0,87921.0,0.0113883]
[1767084057501,0.09676,87944.0,87918.0,0.00017052]
[1767084057502,0.15392,87944.0,87925.0,0.0113878]
[1767084057708,0.15392,87944.0,87922.0,0.09676]
[1767084058207,0.15392,87944.0,87923.0,0.011388]
[1767084058708,0.00017052,87942.0,87923.0,0.011388]
[1767084059513,0.00017052,87942.0,87926.0,0.0113876]
[1767084061007,0.00017052,87942.0,87922.0,0.09676]
[1767084061814,0.00017052,87942.0,87926.0,0.0113876]
[1767084062614,0.00017052,87942.0,87930.0,0.15391033]
[1767084064816,0.00017052,87942.0,87926.0,0.05716]
[1767084065119,0.00017052,87942.0,87930.0,0.15391033]
[1767084065319,0.00017052,87942.0,87926.0,0.05716]
[1767084066001,0.00017052,87942.0,87930.0,0.15391033]
[1767084068107,0.09676,87948.0,87931.0,0.011387]
[1767084068304,0.011383,87963.0,87940.0,0.15391033]
[1767084068615,0.17795241,87962.0,87940.0,0.15391033]
[1767084068813,0.15392,87962.0,87940.0,0.15391033]
[1767084069009,0.00017052,87960.0,87942.0,0.00017052]
[1767084077523,0.09676,87978.0,87955.0,0.0113839]
[1767084077721,0.15392,87978.0,87955.0,0.0113839]
[1767084078026,0.15392,87978.0,87952.0,0.15392]
[1767084078410,0.0001133,87974.0,87952.0,0.15392]
[1767084078621,0.0001133,87974.0,87956.0,0.00017052]
[1767084079324,0.0001133,87974.0,87960.0,0.15391033]
[1767084080123,0.0001133,87974.0,87956.0,0.00017052]
[1767084080319,0.0001133,87974.0,87960.0,0.15391033]
[1767084080522,0.0001133,87974.0,87956.0,0.00017052]
[1767084080721,0.0001133,87974.0,87960.0,0.15391033]
[1767084081225,0.0001133,87974.0,87956.0,0.00017052]
[1767084081430,0.0001133,87974.0,87960.0,0.15391033]
[1767084081630,0.0001133,87974.0,87956.0,0.00017052]
[1767084081820,0.0001133,87974.0,87960.0,0.15391033]
[1767084085016,0.0001133,87974.0,87956.0,0.00017052]
[1767084085219,0.0001133,87974.0,87960.0,0.15391033]